fUST/lending_fUST_20250124
["ID","MTS","AMOUNT","RATE_DAILY","PERIOD"]
[350144450,1737651046565,-500.0,0.00020879,3]
[350144451,1737651046575,-593.23,0.00020879,3]
[350144452,1737651046584,-302.28978287,0.000209,2]
[350144453,1737651046594,-3386.47224143,0.00021,2]
[350144454,1737651046604,-510.64,0.00021002,3]
[350144455,1737651046614,-314.29,0.00021002,3]
[350144456,1737651046624,-1169.61,0.00021002,3]
[350144457,1737651046633,-500.0,0.00021002,3]
[350144458,1737651046642,-500.0,0.00021002,3]
[350144459,1737651046652,-500.0,0.00021002,3]
[350144460,1737651046662,-500.0,0.00021002,3]
[350144461,1737651046672,-7884.75,0.00021002,3]
[350144462,1737651046681,-500.0,0.00021002,3]
[350144463,1737651046691,-2093.71,0.00021002,3]
[350144464,1737651046701,-2667.9,0.00021003,3]
[350144465,1737651046711,-302.28978271,0.00021003,2]
[350144466,1737651046721,-503.11,0.00021015,3]
[350144467,1737651046731,-500.0,0.00021015,3]
[350144468,1737651046741,-500.0,0.00021015,3]
[350144469,1737651046751,-557.42,0.00021016,3]
[350144470,1737651046763,-537.78,0.00021016,3]
[350144471,1737651046773,-1204.06,0.00021016,3]
[350144472,1737651046783,-500.0,0.00021016,3]
[350144473,1737651046793,-679.26,0.00021016,3]
[350144474,1737651046803,-500.0,0.00021016,3]
[350144475,1737651046814,-500.0,0.00021016,3]
[350144476,1737651046824,-500.0,0.00021016,3]
[350144477,1737651046836,-500.0,0.00021016,3]
[350144478,1737651046850,-557.58,0.00021016,3]
[350144479,1737651046860,-1576.39,0.00021016,3]
[350144480,1737651046869,-500.0,0.00021016,3]
[350144481,1737651046879,-593.23,0.00021016,3]
[350144482,1737651046889,-500.0,0.00021043,3]
[350144483,1737651046899,-500.0,0.00021043,3]
[350144484,1737651046908,-500.0,0.00021043,3]
[350144485,1737651046918,-302.28978271,0.00021107,2]
[350144486,1737651046928,-1169.61,0.00021139,3]
[350144487,1737651046938,-500.0,0.00021139,3]
[350144488,1737651046947,-500.0,0.00021139,3]
[350144490,1737651046956,-500.0,0.00021139,3]
[350144492,1737651046966,-7884.75,0.00021139,3]
[350144493,1737651046979,-500.0,0.00021139,3]
[350144494,1737651046988,-2093.71,0.00021139,3]
[350144495,1737651046998,-2667.9,0.0002114,3]
[350144496,1737651047007,-503.11,0.00021152,3]
[350144497,1737651047020,-500.0,0.00021152,3]
[350144498,1737651047029,-500.0,0.00021152,3]
[350144499,1737651047039,-500.0,0.00021153,3]
[350144500,1737651047048,-500.0,0.00021153,3]
[350144501,1737651047058,-537.78,0.00021153,3]
[350144502,1737651047068,-1204.06,0.00021153,3]
[350144503,1737651047078,-500.0,0.00021153,3]
[350144504,1737651047088,-679.26,0.00021153,3]
[350144505,1737651047100,-500.0,0.00021153,3]
[350144507,1737651047110,-500.0,0.00021153,3]
[350144509,1737651047120,-500.0,0.00021153,3]
[350144511,1737651047129,-500.0,0.00021153,3]
[350144513,1737651047139,-557.58,0.00021153,3]
[350144515,1737651047148,-1576.39,0.00021153,3]
[350144517,1737651047158,-500.0,0.00021153,3]
[350144519,1737651047167,-593.23,0.00021153,3]
[350144521,1737651047176,-300.0,0.000212,9]
[350144523,1737651047185,-302.28978271,0.0002121,2]
[350144525,1737651047194,-1169.61,0.00021276,3]
[350144527,1737651047204,-500.0,0.00021276,3]
[350144529,1737651047214,-500.0,0.00021276,3]
[350144531,1737651047222,-500.0,0.00021276,3]
[350144533,1737651047231,-7884.75,0.00021276,3]
[350144535,1737651047242,-500.0,0.00021276,3]
[350144537,1737651047251,-2093.71,0.00021276,3]
[350144539,1737651047260,-2667.9,0.00021277,3]
[350144541,1737651047273,-503.11,0.00021289,3]
[350144543,1737651047283,-500.0,0.00021289,3]
[350144545,1737651047292,-500.0,0.00021289,3]
[350144547,1737651047302,-537.78,0.0002129,3]
[350144548,1737651047311,-1204.06,0.0002129,3]
[350144551,1737651047321,-500.0,0.0002129,3]
[350144553,1737651047330,-679.26,0.0002129,3]
[350144554,1737651047340,-500.0,0.0002129,3]
[350144557,1737651047351,-500.0,0.0002129,3]
[350144559,1737651047361,-500.0,0.0002129,3]
[350144561,1737651047370,-500.0,0.0002129,3]
[350144563,1737651047380,-557.58,0.0002129,3]
[350144564,1737651047389,-1576.39,0.0002129,3]
[350144567,1737651047399,-357.42948332,0.0002129,3]
[350144569,1737651047409,-593.23,0.0002129,3]
[350144572,1737651047419,-302.28978271,0.00021314,2]
[350144573,1737651047429,-169.39946869,0.0002137,2]
[350144575,1737651047438,-160.0,0.0002138,2]
[350144576,1737651047448,-1169.61,0.00021413,3]
[350144577,1737651047458,-500.0,0.00021413,3]
[350144578,1737651047467,-500.0,0.00021413,3]
[350144579,1737651047478,-7884.75,0.00021413,3]
[350144580,1737651047489,-500.0,0.00021413,3]
[350144581,1737651047499,-2093.71,0.00021413,3]
[350144582,1737651047508,-2667.9,0.00021414,3]
[350144583,1737651047523,-302.28978271,0.00021417,2]
[350144584,1737651047533,-150.0,0.00021423,2]
[350144585,1737651047542,-395.0,0.00021423,2]
[350144586,1737651047553,-503.11,0.00021426,3]
[350144587,1737651047563,-500.0,0.00021426,3]
[350144588,1737651047573,-500.0,0.00021426,3]
[350144589,1737651047583,-537.78,0.00021427,3]
[350144590,1737651047593,-1204.06,0.00021427,3]
[350144591,1737651047603,-500.0,0.00021427,3]
[350144592,1737651047613,-679.26,0.00021427,3]
[350144593,1737651047623,-500.0,0.00021427,3]
[350144594,1737651047633,-500.0,0.00021427,3]
[350144595,1737651047643,-500.0,0.00021427,3]
[350144596,1737651047653,-500.0,0.00021427,3]
[350144597,1737651047663,-557.58,0.00021427,3]
[350144598,1737651047673,-1576.39,0.00021427,3]
[350144599,1737651047682,-593.23,0.00021427,3]
[350144600,1737651047692,-1200.0,0.00021505,2]
[350144601,1737651047703,-151.0,0.00021505,2]
[350144602,1737651047713,-302.28978271,0.00021521,2]
[350144603,1737651047723,-151.0,0.0002155,2]
[350144604,1737651047733,-1169.61,0.0002155,3]
[350144605,1737651047743,-500.0,0.0002155,3]
[350144606,1737651047753,-500.0,0.0002155,3]
[350144607,1737651047768,-7884.75,0.0002155,3]
[350144608,1737651047780,-500.0,0.0002155,3]
[350144609,1737651047791,-2093.71,0.0002155,3]
[350144610,1737651047801,-2667.9,0.00021551,3]
[350144611,1737651047812,-503.11,0.00021563,3]
[350144612,1737651047822,-500.0,0.00021563,3]
[350144613,1737651047832,-500.0,0.00021563,3]
[350144614,1737651047844,-557.42,0.00021564,3]
[350144615,1737651047860,-537.78,0.00021564,3]
[350144616,1737651047872,-1204.06,0.00021564,3]
[350144617,1737651047883,-500.0,0.00021564,3]
[350144618,1737651047894,-679.26,0.00021564,3]
[350144619,1737651047905,-500.0,0.00021564,3]
[350144620,1737651047916,-500.0,0.00021564,3]
[350144621,1737651047928,-500.0,0.00021564,3]
[350144622,1737651047938,-500.0,0.00021564,3]
[350144623,1737651047948,-557.58,0.00021564,3]
[350144624,1737651047959,-1576.39,0.00021564,3]
[350144625,1737651047970,-593.23,0.00021564,3]
[350144626,1737651047980,-1500.0,0.00021622,2]
[350144627,1737651047991,-302.28978271,0.00021624,3]
[350144628,1737651048002,-1169.61,0.00021687,3]
[350144629,1737651048014,-500.0,0.00021687,3]
[350144630,1737651048028,-500.0,0.00021687,3]
[350144631,1737651048038,-7884.75,0.00021687,3]
[350144632,1737651048048,-500.0,0.00021687,3]
[350144633,1737651048058,-2093.71,0.00021687,3]
[350144634,1737651048068,-2667.9,0.00021688,3]
[350144635,1737651048079,-420.0,0.0002169,2]
[350144636,1737651048090,-503.11,0.000217,3]
[350144637,1737651048100,-500.0,0.000217,3]
[350144638,1737651048110,-500.0,0.000217,3]
[350144639,1737651048120,-537.78,0.00021701,3]
[350144640,1737651048130,-1204.06,0.00021701,3]
[350144641,1737651048141,-500.0,0.00021701,3]
[350144642,1737651048150,-679.26,0.00021701,3]
[350144643,1737651048160,-500.0,0.00021701,3]
[350144644,1737651048171,-174.66883005,0.00021701,3]
[350144645,1737651048180,-557.58,0.00021701,3]
[350144646,1737651048190,-1576.39,0.00021701,3]
[350144647,1737651048200,-593.23,0.00021701,3]
[350144648,1737651048210,-302.28978271,0.00021728,3]
[350144649,1737651048220,-1169.61,0.00021824,3]
[350144650,1737651048230,-500.0,0.00021824,3]
[350144651,1737651048240,-351.16,0.00021824,3]
[350144652,1737651048251,-7884.75,0.00021824,3]
[350144653,1737651048261,-560.18,0.00021824,3]
[350144654,1737651048275,-2093.71,0.00021824,3]
[350144655,1737651048285,-2667.9,0.00021825,3]
[350144656,1737651048295,-302.28978271,0.00021831,3]
[350144657,1737651048305,-503.11,0.00021837,3]
[350144658,1737651048315,-500.0,0.00021837,3]
[350144659,1737651048324,-500.0,0.00021838,3]
[350144660,1737651048334,-500.0,0.00021838,3]
[350144661,1737651048345,-537.78,0.00021838,3]
[350144662,1737651048355,-151.0,0.00021838,2]
[350144663,1737651048367,-261.554289,0.00021838,2]
[350144664,1737651048379,-1204.06,0.00021838,3]
[350144665,1737651048390,-500.0,0.00021838,3]
[350144666,1737651048401,-679.26,0.00021838,3]
[350144667,1737651048412,-500.0,0.00021838,3]
[350144668,1737651048422,-557.58,0.00021838,3]
[350144669,1737651048433,-1576.39,0.00021838,3]
[350144670,1737651048443,-593.23,0.00021838,3]
[350144671,1737651048454,-500.0,0.00021917,3]
[350144672,1737651048464,-500.0,0.00021917,3]
[350144673,1737651048474,-503.56490207,0.00021917,3]
[350144674,1737651048486,-500.0,0.00021917,3]
[350144675,1737651048496,-500.0,0.00021917,3]
[350144676,1737651048507,-500.0,0.00021917,3]
[350144677,1737651048522,-500.0,0.00021917,3]
[350144678,1737651048532,-500.0,0.00021917,3]
[350144679,1737651048542,-510.38446383,0.00021917,3]
[350144680,1737651048552,-500.0,0.00021917,3]
[350144681,1737651048562,-500.0,0.00021917,3]
[350144682,1737651048572,-166.95,0.0002192,2]
[350144683,1737651048582,-166.95,0.0002192,2]
[350144684,1737651048592,-166.95,0.0002192,2]
[350144685,1737651048602,-166.95,0.0002192,2]
[350144686,1737651048611,-166.95,0.0002192,2]
[350144687,1737651048621,-166.95,0.0002192,2]
[350144688,1737651048631,-166.95,0.0002192,2]
[350144689,1737651048641,-302.28978271,0.00021934,3]
[350144690,1737651048651,-1169.61,0.00021961,3]
[350144691,1737651048661,-500.0,0.00021961,3]
[350144692,1737651048671,-7884.75,0.00021961,3]
[350144693,1737651048681,-2093.71,0.00021961,3]
[350144694,1737651048691,-2667.9,0.00021962,3]
[350144695,1737651048701,-503.11,0.00021974,3]
[350144696,1737651048710,-500.0,0.00021974,3]
[350144697,1737651048721,-557.42,0.00021975,3]
[350144698,1737651048732,-537.78,0.00021975,3]
[350144699,1737651048743,-1204.06,0.00021975,3]
[350144700,1737651048752,-500.0,0.00021975,3]
[350144701,1737651048764,-679.26,0.00021975,3]
[350144702,1737651048778,-557.58,0.00021975,3]
[350144703,1737651048789,-1576.39,0.00021975,3]
[350144704,1737651048799,-593.23,0.00021975,3]
[350144705,1737651048809,-158.0,0.00022,2]
[350144706,1737651048820,-302.28978271,0.00022038,3]
[350144707,1737651048940,-1169.61,0.00022098,3]
[350144708,1737651048951,-500.0,0.00022098,3]
[350144709,1737651048962,-7884.75,0.00022098,3]
[350144710,1737651048972,-2093.71,0.00022098,3]
[350144711,1737651048982,-2667.9,0.00022099,3]
[350144712,1737651048993,-503.11,0.00022111,3]
[350144713,1737651049002,-625.5,0.00022111,3]
[350144714,1737651049012,-590.03580323,0.00022112,3]
[350144715,1737651049032,-500.0,0.00022112,3]
[350144716,1737651049043,-537.78,0.00022112,3]
[350144717,1737651049053,-1204.06,0.00022112,3]
[350144718,1737651049064,-500.0,0.00022112,3]
[350144719,1737651049075,-679.26,0.00022112,3]
[350144720,1737651049086,-557.58,0.00022112,3]
[350144721,1737651049100,-1576.39,0.00022112,3]
[350144722,1737651049110,-593.23,0.00022112,3]
[350144723,1737651049121,-302.28978271,0.00022141,3]
[350144724,1737651049131,-12097.11,0.000222,2]
[350144725,1737651049142,-1169.61,0.00022235,3]
[350144726,1737651049153,-440.48484573,0.00022235,3]
[350144727,1737651049164,-7884.75,0.00022235,3]
[350144728,1737651049174,-2093.71,0.00022235,3]
[350144729,1737651049184,-2667.9,0.00022236,3]
[350144730,1737651049196,-302.28978271,0.00022245,3]
[350144731,1737651049206,-503.11,0.00022248,3]
[350144732,1737651049218,-537.78,0.00022249,3]
[350144733,1737651049228,-1204.06,0.00022249,3]
[350144734,1737651049238,-500.0,0.00022249,3]
[350144735,1737651049248,-679.26,0.00022249,3]
[350144736,1737651049258,-557.58,0.00022249,3]
[350144737,1737651049271,-1576.39,0.00022249,3]
[350144738,1737651049282,-5741.33,0.000223,14]
[350144739,1737651049292,-302.28978271,0.00022348,3]
[350144740,1737651049302,-1169.61,0.00022372,3]
[350144741,1737651049312,-7884.75,0.00022372,3]
[350144742,1737651049322,-2093.71,0.00022372,3]
[350144743,1737651049332,-2667.9,0.00022373,3]
[350144744,1737651049343,-503.11,0.00022385,3]
[350144745,1737651049354,-537.78,0.00022386,3]
[350144746,1737651049363,-1204.06,0.00022386,3]
[350144747,1737651049374,-500.0,0.00022386,3]
[350144748,1737651049384,-679.26,0.00022386,3]
[350144749,1737651049394,-557.58,0.00022386,3]
[350144750,1737651049403,-1576.39,0.00022386,3]
[350144751,1737651049413,-151.0,0.000224,9]
[350144752,1737651049422,-302.28978271,0.00022452,3]
[350144753,1737651049431,-483.80891844,0.00022478,2]
[350144754,1737651049441,-153.14,0.000225,31]
[350144755,1737651049450,-153.14,0.000225,31]
[350144756,1737651049459,-153.14,0.000225,31]
[350144757,1737651049469,-153.14,0.000225,31]
[350144758,1737651049479,-153.14,0.000225,31]
[350144759,1737651049488,-153.14,0.000225,31]
[350144760,1737651049497,-153.14,0.000225,31]
[350144761,1737651049509,-1169.61,0.00022509,3]
[350144762,1737651049522,-7884.75,0.00022509,3]
[350144763,1737651049532,-2093.71,0.00022509,3]
[350144764,1737651049542,-2667.9,0.0002251,3]
[350144765,1737651049551,-503.11,0.00022522,3]
[350144766,1737651049561,-537.78,0.00022523,3]
[350144767,1737651049571,-1204.06,0.00022523,3]
[350144768,1737651049581,-500.0,0.00022523,3]
[350144769,1737651049592,-679.26,0.00022523,3]
[350144770,1737651049602,-557.58,0.00022523,3]
[350144771,1737651049611,-1576.39,0.00022523,3]
[350144772,1737651049621,-302.28978271,0.00022555,3]
[350144773,1737651049631,-1169.61,0.00022646,3]
[350144774,1737651049641,-7884.75,0.00022646,3]
[350144775,1737651049651,-2093.71,0.00022646,3]
[350144776,1737651049661,-2667.9,0.00022647,3]
[350144777,1737651049670,-302.28978271,0.00022659,3]
[350144778,1737651049679,-503.11,0.00022659,3]
[350144779,1737651049689,-537.78,0.0002266,3]
[350144780,1737651049701,-1204.06,0.0002266,3]
[350144781,1737651049710,-500.0,0.0002266,3]
[350144782,1737651049720,-679.26,0.0002266,3]
[350144783,1737651049729,-557.58,0.0002266,3]
[350144784,1737651049739,-1576.39,0.0002266,3]
[350144785,1737651049748,-458.979429,0.000227,10]
[350144786,1737651049758,-151.0,0.000227,9]
[350144787,1737651049770,-329.532,0.0002276,2]
[350144788,1737651049779,-302.28978271,0.00022762,3]
[350144789,1737651049790,-1169.61,0.00022783,3]
[350144790,1737651049799,-7884.75,0.00022783,3]
[350144791,1737651049810,-2093.71,0.00022783,3]
[350144792,1737651049820,-2667.9,0.00022784,3]
[350144793,1737651049830,-503.11,0.00022796,3]
[350144794,1737651049841,-557.42,0.00022797,3]
[350144795,1737651049854,-537.78,0.00022797,3]
[350144796,1737651049864,-1204.06,0.00022797,3]
[350144797,1737651049874,-245.43,0.00022797,3]
[350144798,1737651049885,-679.26,0.00022797,3]
[350144799,1737651049896,-557.58,0.00022797,3]
[350144800,1737651049906,-1576.39,0.00022797,3]
[350144801,1737651049916,-302.28978271,0.00022866,3]
[350144802,1737651049926,-2000.0,0.0002292,2]
[350144803,1737651049936,-1169.61,0.0002292,3]
[350144804,1737651049946,-7884.75,0.0002292,3]
[350144805,1737651049956,-2093.71,0.0002292,3]
[350144806,1737651049966,-2667.9,0.00022921,3]
[350144807,1737651049976,-503.11,0.00022933,3]
[350144808,1737651049987,-537.78,0.00022934,3]
[350144809,1737651049999,-1204.06,0.00022934,3]
[350144810,1737651050011,-679.26,0.00022934,3]
[350144811,1737651050030,-557.58,0.00022934,3]
[350144812,1737651050040,-1576.39,0.00022934,3]
[350144813,1737651050049,-302.28978271,0.00022969,3]
[350144814,1737651050059,-371.2358012,0.00022986,2]
[350144815,1737651050069,-1000.0,0.00023,23]
[350144816,1737651050079,-150.0,0.00023,2]
[350144817,1737651050089,-200.0,0.00023,2]
[350144818,1737651050099,-158.0,0.00023014,2]
[350144819,1737651050110,-951.28178723,0.0002304,2]
[350144820,1737651050120,-1169.61,0.00023057,3]
[350144821,1737651050130,-7884.75,0.00023057,3]
[350144822,1737651050139,-2093.71,0.00023057,3]
[350144823,1737651050151,-2667.9,0.00023058,3]
[350144824,1737651050161,-503.2325813,0.0002307,3]
[350144825,1737651050171,-500.0,0.00023071,3]
[350144826,1737651050181,-537.95416732,0.00023071,3]
[350144827,1737651050191,-1204.1664062,0.00023071,3]
[350144828,1737651050201,-679.27201673,0.00023071,3]
[350144829,1737651050212,-557.78190489,0.00023071,3]
[350144830,1737651050222,-1576.55715387,0.00023071,3]
[350144831,1737651050232,-302.28978271,0.00023072,3]
[350144832,1737651050242,-153.0,0.00023123,2]
[350144833,1737651050252,-302.28978271,0.00023176,3]
[350144834,1737651050263,-151.0,0.00023176,7]
[350144835,1737651050283,-1169.84367014,0.00023194,3]
[350144836,1737651050294,-7884.76794685,0.00023194,3]
[350144837,1737651050306,-2093.79867547,0.00023194,3]
[350144838,1737651050317,-2668.10926867,0.00023195,3]
[350144839,1737651050328,-302.28978271,0.00023279,3]
[350144840,1737651050338,-302.28978271,0.00023383,3]
[350144841,1737651050349,-153.0,0.00023397,2]
[350144842,1737651050359,-153.0,0.00023397,2]
[350144843,1737651050369,-153.0,0.00023397,2]
[350144844,1737651050382,-153.0,0.00023397,2]
[350144845,1737651050393,-153.0,0.00023397,2]
[350144846,1737651050404,-325.9554584,0.00023397,2]
[350144847,1737651050415,-9079.29622472,0.00023472,2]
[350144848,1737651050425,-302.28978271,0.00023486,3]
[350144849,1737651050436,-557.42,0.00023493,3]
[350144850,1737651050448,-153.14,0.000235,31]
[350144851,1737651050458,-153.14,0.000235,31]
[350144852,1737651050469,-153.14,0.000235,31]
[350144853,1737651050479,-153.14,0.000235,31]
[350144854,1737651050490,-153.14,0.000235,31]
[350144855,1737651050500,-153.14,0.000235,31]
[350144856,1737651050510,-153.14,0.000235,31]
[350144857,1737651050529,-153.14,0.000235,31]
[350144858,1737651050538,-151.0,0.000235,7]
[350144859,1737651050548,-13031.4732836,0.000235,2]
[350144860,1737651050558,-500.0,0.0002356,3]
[350144861,1737651050568,-500.0,0.0002356,3]
[350144862,1737651050579,-500.0,0.0002356,3]
[350144863,1737651050588,-500.0,0.0002356,3]
[350144864,1737651050598,-8405.71442064,0.00023561,14]
[350144865,1737651050607,-557.42,0.00023561,3]
[350144866,1737651050617,-302.28978271,0.0002359,3]
[350144867,1737651050626,-500.0,0.00023594,3]
[350144868,1737651050636,-5000.0,0.00023595,2]
[350144869,1737651050645,-5000.0,0.00023595,2]
[350144870,1737651050655,-5000.0,0.00023595,2]
[350144871,1737651050665,-587.0,0.0002362,2]
[350144872,1737651050675,-151.0,0.00023671,7]
[350144873,1737651050684,-151.0,0.00023685,7]
[350144874,1737651050694,-416.85,0.00023691,2]
[350144875,1737651050705,-302.28978271,0.00023693,3]
[350144876,1737651050714,-1000.0,0.000237,2]
[350144877,1737651050724,-12097.11,0.000237,2]
[350144878,1737651050735,-491.1670172,0.00023714,2]
[350144879,1737651050745,-198.94,0.00023761,2]
[350144880,1737651050755,-196.0,0.00023761,2]
[350144881,1737651050769,-9079.29622473,0.00023778,2]
[350144882,1737651050779,-302.28978271,0.00023797,3]
[350144883,1737651050790,-5741.33,0.000238,14]
[350144884,1737651050800,-1000.0,0.00023805,2]
[350144885,1737651050811,-557.42,0.00023822,3]
[350144886,1737651050821,-1000.0,0.00023823,2]
[350144887,1737651050831,-1933.62139683,0.00023843,2]
[350144888,1737651050844,-557.42,0.00023857,3]
[350144889,1737651050854,-557.42,0.00023857,3]
[350144890,1737651050863,-151.0,0.00023861,7]
[350144891,1737651050873,-151.0,0.00023861,7]
[350144892,1737651050884,-51912.51052575,0.0002387,2]
[350144893,1737651050893,-151.0,0.000239,6]
[350144894,1737651050903,-150.0,0.000239,2]
[350144895,1737651050914,-425.11816182,0.000239,2]
[350144896,1737651050926,-302.28978271,0.000239,3]
[350144897,1737651050936,-1000.0,0.00023911,2]
[350144898,1737651050946,-1000.0,0.00023934,2]
[350144899,1737651050956,-1000.0,0.00023939,2]
[350144900,1737651050966,-802.86851086,0.0002394,2]
[350144901,1737651050975,-500.0,0.00023941,3]
[350144902,1737651050985,-500.0,0.00023941,3]
[350144903,1737651050995,-500.0,0.00023941,3]
[350144904,1737651051005,-500.0,0.00023942,3]
[350144905,1737651051015,-500.0,0.00023942,3]
[350144906,1737651051028,-500.0,0.00023942,3]
[350144907,1737651051037,-500.0,0.00023942,3]
[350144908,1737651051047,-500.0,0.00023942,3]
[350144909,1737651051057,-500.0,0.00023942,3]
[350144910,1737651051067,-500.0,0.00023942,3]
[350144911,1737651051077,-549.71208941,0.00023942,3]
[350144912,1737651051088,-185.0,0.00023943,3]
[350144913,1737651051098,-1143.15960534,0.00023943,14]
[350144914,1737651051108,-153.0,0.00023945,2]
[350144915,1737651051118,-153.0,0.00023945,2]
[350144916,1737651051128,-153.0,0.00023945,2]
[350144917,1737651051139,-153.0,0.00023945,2]
[350144918,1737651051148,-277.74646764,0.00023946,3]
[350144919,1737651051158,-557.42,0.00023946,3]
[350144920,1737651051168,-557.42,0.00023946,3]
[350144921,1737651051178,-557.42,0.00023946,3]
[350144922,1737651051188,-557.42,0.00023946,3]
[350144923,1737651051198,-557.61881629,0.00023946,3]
[350144924,1737651051208,-598.63556217,0.00023953,2]
[350144925,1737651051218,-150.05,0.00023958,14]
[350144926,1737651051228,-219.80585833,0.00023958,14]
[350144927,1737651051238,-299.98,0.00023958,2]
[350144928,1737651051248,-150.05,0.00023958,14]
[350144929,1737651051258,-150.05,0.00023958,14]
[350144930,1737651051271,-150.05,0.00023958,2]
[350144931,1737651051281,-500.0,0.00023958,3]
[350144932,1737651051291,-150.05,0.00023958,14]
[350144933,1737651051301,-151.0,0.00023961,7]
[350144934,1737651051311,-151.0,0.00023961,7]
[350144935,1737651051320,-245.0,0.00023961,7]
[350144936,1737651051331,-153.0,0.00023963,2]
[350144937,1737651051340,-153.0,0.00023963,2]
[350144938,1737651051350,-153.0,0.00023963,2]
[350144939,1737651051359,-153.0,0.00023963,2]
[350144940,1737651051369,-153.0,0.00023963,2]
[350144941,1737651051378,-153.0,0.00023966,2]
[350144942,1737651051388,-153.0,0.00023966,2]
[350144943,1737651051397,-4362927.55763263,0.0002397,61]
[350144944,1737651051417,-864401.24387921,0.0002397,61]
[350144961,1737651104854,400.0,0.00013973,2]
[350144965,1737651265573,1000.0,0.00024,120]
[350144984,1737651999438,400.0,0.00013973,2]
[350144985,1737652006027,531.0,0.00024,120]
[350145037,1737652232125,-197.00913,0.00017454,2]
[350145039,1737652232138,-197.00913,0.00017808,2]
[350145041,1737652232149,-226.778783,0.00017812,2]
[350145043,1737652232159,-638.7638254,0.00017903,2]
[350145045,1737652232169,-3769.51869169,0.00018448,2]
[350145047,1737652232187,-148.44175431,0.00018448,2]
[350145049,1737652232197,-6431.2479635,0.00018678,2]
[350145051,1737652232207,-862.91623975,0.00019078,2]
[350145053,1737652232216,-500.0,0.00019178,2]
[350145055,1737652232227,-503.36863251,0.00019178,2]
[350145057,1737652232236,-500.0,0.00019178,2]
[350145059,1737652232246,-500.0,0.00019178,2]
[350145061,1737652232255,-535.87397067,0.00019178,2]
[350145063,1737652232266,-500.0,0.00019178,2]
[350145065,1737652232277,-500.0,0.00019178,2]
[350145067,1737652232287,-500.0,0.00019178,2]
[350145069,1737652232296,-500.0,0.00019178,2]
[350145071,1737652232305,-500.0,0.00019178,2]
[350145073,1737652232315,-500.0,0.00019178,2]
[350145075,1737652232324,-500.0,0.00019178,2]
[350145077,1737652232334,-500.0,0.00019178,2]
[350145079,1737652232343,-504.56324434,0.00019178,2]
[350145081,1737652232353,-500.0,0.00019178,2]
[350145083,1737652232362,-500.0,0.00019178,2]
[350145085,1737652232372,-500.0,0.00019178,2]
[350145087,1737652232381,-500.0,0.00019178,2]
[350145089,1737652232391,-500.0,0.00019178,2]
[350145091,1737652232401,-500.0,0.00019178,2]
[350145093,1737652232410,-500.0,0.00019178,2]
[350145094,1737652232420,-500.0,0.00019178,2]
[350145096,1737652232435,-500.0,0.00019178,2]
[350145099,1737652232445,-500.0,0.00019178,2]
[350145100,1737652232455,-500.0,0.00019178,2]
[350145103,1737652232465,-500.0,0.00019178,2]
[350145105,1737652232474,-500.0,0.00019178,2]
[350145106,1737652232484,-500.0,0.00019178,2]
[350145108,1737652232493,-500.0,0.00019178,2]
[350145111,1737652232504,-500.0,0.00019178,2]